[Event "*** Biggest EVER Titled Tuesday"]
[Site "Chess.com"]
[Date "2018.04.17"]
[Round "10"]
[White "vuqaresedli"]
[Black "Journey_to_GrandMaster_YT"]
[Result "1/2-1/2"]
[WhiteElo "2373"]
[BlackElo "2393"]
[TimeControl "180+2"]
[EndTime "15:26:31 PDT"]
[Termination "Game drawn - insufficient material"]

1. Nf3 {[%clk 0:03:01.8]} 1... d6 {[%clk 0:02:59.9]} 2. d4 {[%clk 0:03:01.1]}
2... Nf6 {[%clk 0:03:00.5]} 3. Nc3 {[%clk 0:02:59]} 3... Nbd7 {[%clk 0:03:00.4]}
4. e4 {[%clk 0:02:50.8]} 4... e5 {[%clk 0:03:01.4]} 5. Bc4 {[%clk 0:02:51.9]}
5... Be7 {[%clk 0:03:02.3]} 6. O-O {[%clk 0:02:51.7]} 6... O-O {[%clk
0:03:03.4]} 7. Re1 {[%clk 0:02:50.6]} 7... c6 {[%clk 0:03:04.7]} 8. a4 {[%clk
0:02:50.9]} 8... a5 {[%clk 0:03:06.2]} 9. Ba2 {[%clk 0:02:51.6]} 9... exd4
{[%clk 0:02:55.1]} 10. Nxd4 {[%clk 0:02:51.4]} 10... Nc5 {[%clk 0:02:56.3]} 11.
f3 {[%clk 0:02:43.3]} 11... Qb6 {[%clk 0:02:54.5]} 12. Kh1 {[%clk 0:02:40]}
12... Be6 {[%clk 0:02:41.7]} 13. Nxe6 {[%clk 0:02:39.7]} 13... fxe6 {[%clk
0:02:42]} 14. Be3 {[%clk 0:02:39.2]} 14... d5 {[%clk 0:02:42]} 15. Qd2 {[%clk
0:02:28.4]} 15... Rad8 {[%clk 0:02:37.9]} 16. e5 {[%clk 0:02:24.3]} 16... Nfd7
{[%clk 0:02:37.7]} 17. Bd4 {[%clk 0:02:25.3]} 17... Qb4 {[%clk 0:02:29.3]} 18.
Rad1 {[%clk 0:02:22.7]} 18... Nxa4 {[%clk 0:02:18.6]} 19. Nxa4 {[%clk
0:02:16.3]} 19... Qxa4 {[%clk 0:02:20.5]} 20. Bb1 {[%clk 0:02:17.6]} 20... c5
{[%clk 0:02:16.2]} 21. Be3 {[%clk 0:02:18.5]} 21... Qh4 {[%clk 0:01:46.3]} 22.
Qxa5 {[%clk 0:02:16.5]} 22... d4 {[%clk 0:01:39.6]} 23. Bg1 {[%clk 0:02:12.5]}
23... Qh5 {[%clk 0:01:17.3]} 24. Qc7 {[%clk 0:02:02.3]} 24... Bh4 {[%clk
0:01:12.2]} 25. Re4 {[%clk 0:01:58.9]} 25... Bg3 {[%clk 0:01:08.8]} 26. Qd6
{[%clk 0:01:51.1]} 26... Nxe5 {[%clk 0:00:57.9]} 27. Qxe6+ {[%clk 0:01:52]}
27... Kh8 {[%clk 0:00:58.6]} 28. c3 {[%clk 0:01:47.7]} 28... Nxf3 {[%clk
0:00:55.4]} 29. Qg4 {[%clk 0:01:48.4]} 29... Qxg4 {[%clk 0:00:43.5]} 30. Rxg4
{[%clk 0:01:48.7]} 30... Nxg1 {[%clk 0:00:41.2]} 31. Rxg3 {[%clk 0:01:42.8]}
31... Ne2 {[%clk 0:00:41.5]} 32. Rh3 {[%clk 0:01:43.7]} 32... dxc3 {[%clk
0:00:37.7]} 33. Re1 {[%clk 0:01:38.6]} 33... h6 {[%clk 0:00:28.2]} 34. bxc3
{[%clk 0:01:37.9]} 34... Rd2 {[%clk 0:00:23.7]} 35. Re3 {[%clk 0:01:38.2]} 35...
g5 {[%clk 0:00:18.4]} 36. Be4 {[%clk 0:01:37.1]} 36... b5 {[%clk 0:00:14.3]} 37.
Bd3 {[%clk 0:01:31.4]} 37... Nxc3 {[%clk 0:00:13.9]} 38. h4 {[%clk 0:01:28.1]}
38... gxh4 {[%clk 0:00:13.8]} 39. Rh3 {[%clk 0:01:29.6]} 39... b4 {[%clk
0:00:13]} 40. Re7 {[%clk 0:01:26.9]} 40... Nd1 {[%clk 0:00:11.5]} 41. Rxh4
{[%clk 0:01:27.3]} 41... Nf2+ {[%clk 0:00:11.9]} 42. Kh2 {[%clk 0:01:27.8]}
42... Rf6 {[%clk 0:00:06.3]} 43. Bc4 {[%clk 0:01:26.5]} 43... Rd4 {[%clk
0:00:04.6]} 44. Rxd4 {[%clk 0:01:23.7]} 44... cxd4 {[%clk 0:00:05.4]} 45. Rd7
{[%clk 0:01:25.1]} 45... Rc6 {[%clk 0:00:03.4]} 46. Rxd4 {[%clk 0:01:24.6]}
46... h5 {[%clk 0:00:03.8]} 47. Bb3 {[%clk 0:01:24.9]} 47... Rb6 {[%clk
0:00:03.6]} 48. Kg3 {[%clk 0:01:25.8]} 48... Ng4 {[%clk 0:00:04.6]} 49. Kh4
{[%clk 0:01:26.6]} 49... Nf6 {[%clk 0:00:05.3]} 50. Kg5 {[%clk 0:01:27.5]} 50...
Kg7 {[%clk 0:00:05.4]} 51. Rc4 {[%clk 0:01:27.2]} 51... Rb5+ {[%clk 0:00:06.6]}
52. Kf4 {[%clk 0:01:27.1]} 52... Nd5+ {[%clk 0:00:07.6]} 53. Ke4 {[%clk
0:01:27.9]} 53... Nc3+ {[%clk 0:00:08.3]} 54. Kd4 {[%clk 0:01:28.5]} 54... Kf6
{[%clk 0:00:08.4]} 55. Rc6+ {[%clk 0:01:29.1]} 55... Kg5 {[%clk 0:00:09.2]} 56.
Ke3 {[%clk 0:01:27.5]} 56... Nd5+ {[%clk 0:00:08.3]} 57. Ke4 {[%clk 0:01:27.4]}
57... Nf6+ {[%clk 0:00:08.4]} 58. Kf3 {[%clk 0:01:27]} 58... h4 {[%clk
0:00:09.5]} 59. Rc7 {[%clk 0:01:26.8]} 59... Re5 {[%clk 0:00:09.5]} 60. Rb7
{[%clk 0:01:26.5]} 60... Rc5 {[%clk 0:00:06.7]} 61. Rxb4 {[%clk 0:01:26.1]}
61... Rc3+ {[%clk 0:00:07.9]} 62. Ke2 {[%clk 0:01:26.1]} 62... Rg3 {[%clk
0:00:06]} 63. Rb5+ {[%clk 0:01:24.3]} 63... Kf4 {[%clk 0:00:07.2]} 64. Rb4+
{[%clk 0:01:25.2]} 64... Kg5 {[%clk 0:00:08.3]} 65. Rb5+ {[%clk 0:01:25.1]}
65... Kh6 {[%clk 0:00:06.2]} 66. Kf1 {[%clk 0:01:22.4]} 66... Ng4 {[%clk
0:00:06.3]} 67. Bd5 {[%clk 0:01:17.3]} 67... Ne3+ {[%clk 0:00:06]} 68. Kf2
{[%clk 0:01:18.7]} 68... Ng4+ {[%clk 0:00:07.2]} 69. Ke2 {[%clk 0:01:18.2]}
69... Nf6 {[%clk 0:00:05.7]} 70. Bf3 {[%clk 0:01:18]} 70... Kg6 {[%clk
0:00:04.8]} 71. Ke3 {[%clk 0:01:17.4]} 71... Nd7 {[%clk 0:00:04.6]} 72. Kf4
{[%clk 0:01:17.7]} 72... Nf6 {[%clk 0:00:05.3]} 73. Rb6 {[%clk 0:01:18.4]} 73...
Kg7 {[%clk 0:00:05.4]} 74. Rb7+ {[%clk 0:01:18]} 74... Kg6 {[%clk 0:00:06.7]}
75. Rb8 {[%clk 0:01:19]} 75... Rg5 {[%clk 0:00:05.2]} 76. Rh8 {[%clk 0:01:19.1]}
76... Ra5 {[%clk 0:00:04.7]} 77. Rxh4 {[%clk 0:01:16.1]} 77... Ra4+ {[%clk
0:00:05.8]} 78. Kg3 {[%clk 0:01:17.2]} 78... Rxh4 {[%clk 0:00:07]} 79. Kxh4
{[%clk 0:01:18.6]} 79... Kf5 {[%clk 0:00:08.4]} 80. Be2 {[%clk 0:01:18.8]} 80...
Kf4 {[%clk 0:00:09.1]} 81. g3+ {[%clk 0:01:19.2]} 81... Kf5 {[%clk 0:00:10.6]}
82. Bd3+ {[%clk 0:01:19.6]} 82... Ke6 {[%clk 0:00:11.4]} 83. Kg5 {[%clk
0:01:20.8]} 83... Kf7 {[%clk 0:00:12.7]} 84. Kh6 {[%clk 0:01:20.4]} 84... Ke6
{[%clk 0:00:13.7]} 85. Kg6 {[%clk 0:01:20]} 85... Ke7 {[%clk 0:00:13.6]} 86. Bf5
{[%clk 0:01:18.4]} 86... Nd5 {[%clk 0:00:10.5]} 87. Kh6 {[%clk 0:01:15.1]} 87...
Kf6 {[%clk 0:00:10.8]} 88. Be4 {[%clk 0:01:13.9]} 88... Ne3 {[%clk 0:00:11.4]}
89. Kh5 {[%clk 0:01:13.8]} 89... Ke5 {[%clk 0:00:11.8]} 90. Bb1 {[%clk
0:01:13.7]} 90... Kf6 {[%clk 0:00:12.6]} 91. Kh6 {[%clk 0:01:12.5]} 91... Ng4+
{[%clk 0:00:12.1]} 92. Kh5 {[%clk 0:01:13.2]} 92... Ne3 {[%clk 0:00:12.9]} 93.
Bd3 {[%clk 0:01:14.3]} 93... Nd5 {[%clk 0:00:09]} 94. Be4 {[%clk 0:01:12.5]}
94... Ne3 {[%clk 0:00:09.6]} 95. Bf3 {[%clk 0:01:12.6]} 95... Ke5 {[%clk
0:00:09]} 96. Be2 {[%clk 0:01:10.9]} 96... Kf6 {[%clk 0:00:09.2]} 97. Bd3 {[%clk
0:01:09.8]} 97... Ke5 {[%clk 0:00:10]} 98. Kg5 {[%clk 0:01:10.3]} 98... Ke6
{[%clk 0:00:08]} 99. Kf4 {[%clk 0:01:10.3]} 99... Nd5+ {[%clk 0:00:09.1]} 100.
Kf3 {[%clk 0:01:08.2]} 100... Nf6 {[%clk 0:00:09.7]} 101. Kf4 {[%clk 0:01:09.4]}
101... Nh5+ {[%clk 0:00:10.5]} 102. Kg4 {[%clk 0:01:09.5]} 102... Nxg3 {[%clk
0:00:12.4]} 103. Kxg3 {[%clk 0:01:11.1]} 1/2-1/2

[Event "*** Biggest EVER Titled Tuesday"]
[Site "Chess.com"]
[Date "2018.04.17"]
[Round "10"]
[White "Zhuu96"]
[Black "AkshatChandra"]
[Result "1-0"]
[WhiteElo "2763"]
[BlackElo "2812"]
[TimeControl "180+2"]
[EndTime "15:26:43 PDT"]
[Termination "Zhuu96 won by resignation"]

1. e4 {[%clk 0:03:00]} 1... e5 {[%clk 0:03:00.5]} 2. Nf3 {[%clk 0:03:00.7]} 2...
Nc6 {[%clk 0:03:02]} 3. Bc4 {[%clk 0:03:01.5]} 3... Bc5 {[%clk 0:02:59.2]} 4. c3
{[%clk 0:03:00.7]} 4... Nf6 {[%clk 0:02:59.3]} 5. d4 {[%clk 0:03:01.8]} 5...
exd4 {[%clk 0:02:59.9]} 6. cxd4 {[%clk 0:03:02.9]} 6... Bb4+ {[%clk 0:03:01.3]}
7. Nc3 {[%clk 0:03:03.5]} 7... Nxe4 {[%clk 0:02:48.8]} 8. O-O {[%clk 0:03:04]}
8... Bxc3 {[%clk 0:02:47]} 9. d5 {[%clk 0:03:04.9]} 9... Bf6 {[%clk 0:02:46.1]}
10. Re1 {[%clk 0:03:05.1]} 10... O-O {[%clk 0:02:26.7]} 11. Rxe4 {[%clk
0:03:05.6]} 11... Ne7 {[%clk 0:02:27.2]} 12. Bg5 {[%clk 0:03:06.6]} 12... Bxg5
{[%clk 0:02:06]} 13. Nxg5 {[%clk 0:03:07.2]} 13... d6 {[%clk 0:02:02]} 14. Nxh7
{[%clk 0:03:07.1]} 14... Bf5 {[%clk 0:01:39.5]} 15. Rh4 {[%clk 0:03:03.3]} 15...
Re8 {[%clk 0:01:23.8]} 16. Qh5 {[%clk 0:02:26.1]} 16... Ng6 {[%clk 0:01:12]} 17.
Rd4 {[%clk 0:02:25.6]} 17... Re5 {[%clk 0:01:03.6]} 18. f4 {[%clk 0:02:17.5]}
18... Nxf4 {[%clk 0:00:57.9]} 19. Rxf4 {[%clk 0:02:18.2]} 19... Bg6 {[%clk
0:00:55.8]} 20. Qh3 {[%clk 0:02:18.6]} 20... Rh5 {[%clk 0:00:51.4]} 21. Qg3
{[%clk 0:02:15.9]} 21... Rxh7 {[%clk 0:00:44.6]} 22. Re1 {[%clk 0:02:15]} 22...
Rh5 {[%clk 0:00:43.6]} 23. h4 {[%clk 0:02:08.1]} 23... Re5 {[%clk 0:00:42.1]}
24. Rxe5 {[%clk 0:01:45.6]} 24... dxe5 {[%clk 0:00:44]} 25. Rg4 {[%clk 0:01:47]}
25... Qf6 {[%clk 0:00:44.8]} 26. Rg5 {[%clk 0:01:47.6]} 26... Re8 {[%clk
0:00:37]} 27. d6 {[%clk 0:01:48]} 27... Kf8 {[%clk 0:00:27.4]} 28. dxc7 {[%clk
0:01:43.4]} 28... Qb6+ {[%clk 0:00:26.4]} 29. Kh1 {[%clk 0:01:41.8]} 29... Qxc7
{[%clk 0:00:28]} 30. Qa3+ {[%clk 0:01:34.3]} 30... Qe7 {[%clk 0:00:19.3]} 31.
Qxa7 {[%clk 0:01:34.3]} 31... e4 {[%clk 0:00:18.4]} 32. Qe3 {[%clk 0:01:29.7]}
32... Qf6 {[%clk 0:00:18.9]} 33. h5 {[%clk 0:01:20.6]} 33... Bh7 {[%clk
0:00:19.6]} 34. Rb5 {[%clk 0:01:18.5]} 34... Qc6 {[%clk 0:00:15.5]} 35. b3
{[%clk 0:01:18.2]} 35... Qd7 {[%clk 0:00:12.6]} 36. h6 {[%clk 0:01:11.9]} 36...
Qd1+ {[%clk 0:00:12.5]} 37. Kh2 {[%clk 0:01:12.8]} 37... Qd6+ {[%clk 0:00:13.6]}
38. Kg1 {[%clk 0:01:14]} 38... Qd1+ {[%clk 0:00:09.8]} 39. Kf2 {[%clk
0:01:11.3]} 39... Bg6 {[%clk 0:00:06]} 40. Rxb7 {[%clk 0:01:09.1]} 40... Qh5
{[%clk 0:00:06.5]} 41. hxg7+ {[%clk 0:01:03.8]} 41... Kxg7 {[%clk 0:00:08.4]}
42. Rb5 {[%clk 0:01:00.2]} 42... Qh4+ {[%clk 0:00:07.9]} 43. Kf1 {[%clk
0:00:58.1]} 43... Qh1+ {[%clk 0:00:06.4]} 44. Qg1 {[%clk 0:00:56.9]} 44... Qh4
{[%clk 0:00:07.6]} 45. Qd4+ {[%clk 0:00:57.5]} 45... Kg8 {[%clk 0:00:06.8]} 46.
Rb6 {[%clk 0:00:56.4]} 46... Qh1+ {[%clk 0:00:06.6]} 47. Qg1 {[%clk 0:00:55.9]}
47... Qh6 {[%clk 0:00:06.9]} 48. Qf2 {[%clk 0:00:48.3]} 48... Qc1+ {[%clk
0:00:04.9]} 49. Qe1 {[%clk 0:00:47.5]} 49... Qf4+ {[%clk 0:00:05.6]} 50. Kg1
{[%clk 0:00:48.7]} 50... Kg7 {[%clk 0:00:05.3]} 51. Qc3+ {[%clk 0:00:48.9]}
51... Kh7 {[%clk 0:00:04.5]} 52. Rf6 {[%clk 0:00:49.1]} 52... Qg5 {[%clk
0:00:03.2]} 53. Bxf7 {[%clk 0:00:46.1]} 53... Bxf7 {[%clk 0:00:03.7]} 54. Rxf7+
{[%clk 0:00:47.2]} 54... Kg8 {[%clk 0:00:04.8]} 55. Rf2 {[%clk 0:00:16.9]} 55...
e3 {[%clk 0:00:05.4]} 56. Re2 {[%clk 0:00:16.8]} 56... Re7 {[%clk 0:00:04]} 57.
Qc4+ {[%clk 0:00:17.2]} 57... Kg7 {[%clk 0:00:04.7]} 58. Qd4+ {[%clk 0:00:18.1]}
58... Kg6 {[%clk 0:00:04.9]} 59. b4 {[%clk 0:00:18.8]} 59... Qg3 {[%clk
0:00:02.8]} 60. Qd3+ {[%clk 0:00:17.7]} 60... Kg7 {[%clk 0:00:03.6]} 61. b5
{[%clk 0:00:17.8]} 61... Re6 {[%clk 0:00:03.9]} 62. Qd4+ {[%clk 0:00:18.4]}
62... Kf7 {[%clk 0:00:03.6]} 63. Qd5 {[%clk 0:00:17.9]} 63... Ke7 {[%clk
0:00:04.3]} 64. Qb7+ {[%clk 0:00:17.3]} 64... Kf6 {[%clk 0:00:02.8]} 65. Qf3+
{[%clk 0:00:18.1]} 65... Qxf3 {[%clk 0:00:04.4]} 66. gxf3 {[%clk 0:00:19.7]}
66... Kf5 {[%clk 0:00:06.3]} 67. b6 {[%clk 0:00:19.7]} 67... Rxb6 {[%clk
0:00:04.6]} 68. Rxe3 {[%clk 0:00:20.7]} 68... Rb2 {[%clk 0:00:04.6]} 69. a3
{[%clk 0:00:21.4]} 69... Kf4 {[%clk 0:00:05.5]} 70. Rc3 {[%clk 0:00:22.5]} 70...
Ra2 {[%clk 0:00:03.4]} 71. Kf1 {[%clk 0:00:23.5]} 71... Ke5 {[%clk 0:00:04.3]}
72. Rd3 {[%clk 0:00:22.7]} 72... Kf4 {[%clk 0:00:03.7]} 73. Ke1 {[%clk 0:00:23]}
73... Ke5 {[%clk 0:00:02.7]} 74. Kd1 {[%clk 0:00:24.1]} 74... Kf4 {[%clk
0:00:04.3]} 75. Kc1 {[%clk 0:00:25.1]} 75... Ke5 {[%clk 0:00:05.7]} 76. Kb1
{[%clk 0:00:26.1]} 76... Rh2 {[%clk 0:00:06.8]} 77. a4 {[%clk 0:00:22.9]} 77...
Rh4 {[%clk 0:00:08.3]} 78. Ra3 {[%clk 0:00:23.9]} 78... Kd6 {[%clk 0:00:06.2]}
79. Kc2 {[%clk 0:00:23.9]} 79... Kc5 {[%clk 0:00:06.4]} 80. a5 {[%clk
0:00:24.8]} 80... Kb4 {[%clk 0:00:06.4]} 81. Ra1 {[%clk 0:00:25.8]} 81... Rh7
{[%clk 0:00:02.4]} 82. a6 {[%clk 0:00:26.6]} 82... Ra7 {[%clk 0:00:04.1]} 83.
Kd3 {[%clk 0:00:27.9]} 83... Kb5 {[%clk 0:00:04.2]} 84. f4 {[%clk 0:00:28.5]}
84... Kb6 {[%clk 0:00:05.8]} 85. f5 {[%clk 0:00:29]} 85... Rd7+ {[%clk
0:00:06.8]} 86. Ke4 {[%clk 0:00:30]} 86... Ka7 {[%clk 0:00:08.7]} 87. Ke5 {[%clk
0:00:31.1]} 87... Re7+ {[%clk 0:00:09.5]} 88. Kf6 {[%clk 0:00:31.9]} 88... Re2
{[%clk 0:00:09.2]} 89. Kf7 {[%clk 0:00:32.9]} 89... Rc2 {[%clk 0:00:03.7]} 90.
f6 {[%clk 0:00:33.8]} 90... Rg2 {[%clk 0:00:02.5]} 91. Kf8 {[%clk 0:00:34.6]}
91... Rf2 {[%clk 0:00:03.4]} 92. f7 {[%clk 0:00:35.8]} 92... Rf3 {[%clk
0:00:03.6]} 93. Rg1 {[%clk 0:00:36.3]} 93... Kxa6 {[%clk 0:00:02.4]} 94. Kg8
{[%clk 0:00:37.3]} 94... Kb7 {[%clk 0:00:04.1]} 95. f8=Q {[%clk 0:00:38.2]}
95... Rxf8+ {[%clk 0:00:06]} 96. Kxf8 {[%clk 0:00:39.6]} 1-0

[Event "*** Biggest EVER Titled Tuesday"]
[Site "Chess.com"]
[Date "2018.04.17"]
[Round "10"]
[White "nikitakhoroshev"]
[Black "ZapataCharlesS"]
[Result "0-1"]
[WhiteElo "2531"]
[BlackElo "2723"]
[TimeControl "180+2"]
[EndTime "15:26:57 PDT"]
[Termination "ZapataCharlesS won by resignation"]

1. d4 {[%clk 0:03:01.9]} 1... d5 {[%clk 0:02:59.9]} 2. Nc3 {[%clk 0:03:03]} 2...
c6 {[%clk 0:02:59.3]} 3. Bf4 {[%clk 0:03:01.4]} 3... Nf6 {[%clk 0:02:54.6]} 4.
e3 {[%clk 0:03:02]} 4... Bg4 {[%clk 0:02:53.3]} 5. f3 {[%clk 0:02:58.7]} 5...
Bc8 {[%clk 0:02:47]} 6. Bd3 {[%clk 0:02:56.6]} 6... g6 {[%clk 0:02:46.8]} 7.
Nge2 {[%clk 0:02:53.8]} 7... Bg7 {[%clk 0:02:47.3]} 8. e4 {[%clk 0:02:52.1]}
8... O-O {[%clk 0:02:44.1]} 9. Qd2 {[%clk 0:02:49]} 9... dxe4 {[%clk 0:02:18]}
10. fxe4 {[%clk 0:02:50.9]} 10... c5 {[%clk 0:02:18.4]} 11. d5 {[%clk
0:02:23.3]} 11... e6 {[%clk 0:02:12.9]} 12. O-O {[%clk 0:02:15.6]} 12... exd5
{[%clk 0:02:11]} 13. exd5 {[%clk 0:02:17.5]} 13... Nxd5 {[%clk 0:02:06.2]} 14.
Bg5 {[%clk 0:02:18.1]} 14... Ne7 {[%clk 0:02:00.4]} 15. Qe3 {[%clk 0:02:12.6]}
15... Nbc6 {[%clk 0:01:57.8]} 16. Qxc5 {[%clk 0:02:10.7]} 16... h6 {[%clk
0:01:47.3]} 17. Bh4 {[%clk 0:02:00.1]} 17... Qb6 {[%clk 0:01:29]} 18. Qxb6
{[%clk 0:01:58.3]} 18... axb6 {[%clk 0:01:30.9]} 19. Bf2 {[%clk 0:01:56.1]}
19... Ne5 {[%clk 0:01:27.3]} 20. Bb5 {[%clk 0:01:47.2]} 20... Be6 {[%clk
0:01:28.2]} 21. Bxb6 {[%clk 0:01:43.7]} 21... Nf5 {[%clk 0:01:28.2]} 22. Rfd1
{[%clk 0:01:35.2]} 22... Ng4 {[%clk 0:01:15.6]} 23. Nf4 {[%clk 0:01:30.2]} 23...
Be5 {[%clk 0:01:09.8]} 24. Ncd5 {[%clk 0:01:24.1]} 24... Bxd5 {[%clk 0:01:07.4]}
25. Nxd5 {[%clk 0:01:26]} 25... Bxh2+ {[%clk 0:01:07.4]} 26. Kf1 {[%clk
0:01:26.2]} 26... Kg7 {[%clk 0:00:59.9]} 27. Ke2 {[%clk 0:01:22.7]} 27... h5
{[%clk 0:00:58.1]} 28. c3 {[%clk 0:01:21.2]} 28... Be5 {[%clk 0:00:55.1]} 29.
Bd7 {[%clk 0:01:18.4]} 29... Nh4 {[%clk 0:00:52.5]} 30. Kf1 {[%clk 0:01:13.4]}
30... Ra6 {[%clk 0:00:45.1]} 31. Re1 {[%clk 0:01:08.3]} 31... Nf6 {[%clk
0:00:40.3]} 32. Nxf6 {[%clk 0:01:07]} 32... Kxf6 {[%clk 0:00:42.2]} 33. Bf2
{[%clk 0:01:03.8]} 33... Nf5 {[%clk 0:00:43.2]} 34. Bb5 {[%clk 0:01:02.2]} 34...
Raa8 {[%clk 0:00:44.5]} 35. a3 {[%clk 0:00:59.9]} 35... Rfd8 {[%clk 0:00:42.2]}
36. Rad1 {[%clk 0:00:58.7]} 36... Ng3+ {[%clk 0:00:43.2]} 37. Kg1 {[%clk
0:00:53.3]} 37... Rxd1 {[%clk 0:00:41.3]} 38. Rxd1 {[%clk 0:00:55.2]} 38... Ne4
{[%clk 0:00:42.9]} 39. Be3 {[%clk 0:00:51.5]} 39... Nd6 {[%clk 0:00:41.2]} 40.
Be2 {[%clk 0:00:52.5]} 40... Re8 {[%clk 0:00:41.4]} 41. Bf2 {[%clk 0:00:50.9]}
41... Ne4 {[%clk 0:00:39.3]} 42. Bb6 {[%clk 0:00:49.7]} 42... Re6 {[%clk
0:00:35.4]} 43. Bd8+ {[%clk 0:00:47.9]} 43... Kg7 {[%clk 0:00:36.9]} 44. Bc4
{[%clk 0:00:46.9]} 44... Rc6 {[%clk 0:00:37.2]} 45. Bd3 {[%clk 0:00:44.2]} 45...
Nc5 {[%clk 0:00:35.5]} 46. Bc2 {[%clk 0:00:43.1]} 46... Bg3 {[%clk 0:00:33.8]}
47. Be7 {[%clk 0:00:42.1]} 47... b5 {[%clk 0:00:32]} 48. Rf1 {[%clk 0:00:42.4]}
48... f5 {[%clk 0:00:30.2]} 49. Rf3 {[%clk 0:00:41]} 49... f4 {[%clk 0:00:26.7]}
50. Rf1 {[%clk 0:00:39.7]} 50... Na4 {[%clk 0:00:24.9]} 51. Bd3 {[%clk
0:00:40.4]} 51... Nxb2 {[%clk 0:00:23.2]} 52. Bxb5 {[%clk 0:00:41.5]} 52... Rxc3
{[%clk 0:00:24.8]} 53. Bd6 {[%clk 0:00:40]} 53... Nc4 {[%clk 0:00:21.5]} 54. Bb4
{[%clk 0:00:40.2]} 54... Rc2 {[%clk 0:00:20.3]} 55. Ba4 {[%clk 0:00:41]} 55...
Re2 {[%clk 0:00:21]} 56. Bb5 {[%clk 0:00:40]} 56... Re4 {[%clk 0:00:21.8]} 57.
Bc3+ {[%clk 0:00:38.4]} 57... Kh6 {[%clk 0:00:19.2]} 58. a4 {[%clk 0:00:37.4]}
58... Ne3 {[%clk 0:00:19.6]} 59. Rc1 {[%clk 0:00:36.1]} 59... Nd5 {[%clk
0:00:20.5]} 60. Ba1 {[%clk 0:00:33.2]} 60... Rb4 {[%clk 0:00:18.9]} 61. Bc6
{[%clk 0:00:32.2]} 61... Ne3 {[%clk 0:00:20.1]} 62. a5 {[%clk 0:00:31.2]} 62...
Ng4 {[%clk 0:00:20.9]} 63. Rf1 {[%clk 0:00:29.7]} 63... Rc4 {[%clk 0:00:19.1]}
64. Bb7 {[%clk 0:00:30.1]} 64... Bh4 {[%clk 0:00:19.4]} 65. a6 {[%clk
0:00:27.7]} 65... Bd8 {[%clk 0:00:20.8]} 66. Rb1 {[%clk 0:00:23.6]} 66... Bb6+
{[%clk 0:00:21.8]} 67. Kf1 {[%clk 0:00:21.8]} 67... Be3 {[%clk 0:00:23]} 68. Ke1
{[%clk 0:00:20.5]} 68... Rc2 {[%clk 0:00:22]} 69. Kd1 {[%clk 0:00:21.7]} 69...
Rd2+ {[%clk 0:00:22.8]} 70. Ke1 {[%clk 0:00:22.4]} 70... Rc2 {[%clk 0:00:20.5]}
71. Kd1 {[%clk 0:00:21.4]} 71... Rd2+ {[%clk 0:00:21.5]} 72. Ke1 {[%clk
0:00:22.7]} 72... Nf2 {[%clk 0:00:23.2]} 73. Rb3 {[%clk 0:00:18.4]} 73... Rd1+
{[%clk 0:00:24.5]} 74. Ke2 {[%clk 0:00:19.5]} 74... Rxa1 {[%clk 0:00:26.2]} 75.
g3 {[%clk 0:00:17.1]} 75... Ra2+ {[%clk 0:00:26.6]} 76. Kf3 {[%clk 0:00:15.9]}
76... g5 {[%clk 0:00:27.3]} 77. gxf4 {[%clk 0:00:14.9]} 77... gxf4 {[%clk
0:00:29.2]} 78. Rc3 {[%clk 0:00:13.9]} 78... Ng4 {[%clk 0:00:29.4]} 79. Ke4
{[%clk 0:00:08.7]} 79... Kg7 {[%clk 0:00:30.1]} 80. Kf5 {[%clk 0:00:07.6]} 80...
Nh6+ {[%clk 0:00:30.3]} 81. Ke6 {[%clk 0:00:06.7]} 81... Kg6 {[%clk 0:00:27.4]}
82. Rb3 {[%clk 0:00:05.4]} 82... Kg5 {[%clk 0:00:26.5]} 83. Kd6 {[%clk
0:00:04.5]} 83... Nf5+ {[%clk 0:00:27.1]} 84. Ke5 {[%clk 0:00:04.8]} 84... Nd4
{[%clk 0:00:27.6]} 85. Rb1 {[%clk 0:00:04.5]} 85... h4 {[%clk 0:00:25.3]} 86.
Ke4 {[%clk 0:00:04.5]} 86... Ra5 {[%clk 0:00:23.7]} 87. Kd3 {[%clk 0:00:04.3]}
87... Nf5 {[%clk 0:00:24]} 88. Kc4 {[%clk 0:00:04.9]} 88... h3 {[%clk
0:00:24.2]} 89. Rh1 {[%clk 0:00:05.1]} 89... Kh4 {[%clk 0:00:24]} 90. Bc8 {[%clk
0:00:06.3]} 90... Nd6+ {[%clk 0:00:24.5]} 91. Kd3 {[%clk 0:00:07.1]} 91... Nxc8
{[%clk 0:00:25.1]} 92. a7 {[%clk 0:00:08.5]} 92... Nxa7 {[%clk 0:00:26]} 93. Ke4
{[%clk 0:00:10]} 93... Rg5 {[%clk 0:00:26.1]} 94. Kf3 {[%clk 0:00:11.3]} 94...
Rg3+ {[%clk 0:00:27.7]} 95. Ke4 {[%clk 0:00:11.8]} 95... Nc6 {[%clk 0:00:29.2]}
96. Kf5 {[%clk 0:00:12.9]} 96... Nd4+ {[%clk 0:00:30.4]} 97. Ke4 {[%clk
0:00:14.3]} 97... Ne2 {[%clk 0:00:32.1]} 98. Kd3 {[%clk 0:00:15]} 98... Ng1
{[%clk 0:00:33.3]} 99. Ke4 {[%clk 0:00:15.5]} 99... Rg2 {[%clk 0:00:34]} 100.
Kf5 {[%clk 0:00:16.4]} 100... Kg3 {[%clk 0:00:35.4]} 101. Rxh3+ {[%clk
0:00:17.4]} 0-1